[Event "Titled Tuesday Blitz May 16 Early 2023"]
[White "Kielinkei"]
[Black "Jakubowski, Krzysztof"]
[BlackFideId "1112848"]
[WhiteElo "2427"]
[BlackElo "2359"]
[Result "1-0"]
[Round "06"]
[TimeControl "180+2"]
[Date "2023.05.16"]
[WhiteClock "0:00:11"]
[BlackClock "0:00:00"]

1. Nf3 {[%clk 0:03:00]}  Nf6 {[%clk 0:02:57]} 2. c4 {[%clk 0:02:59]}  c5 {[%clk 0:02:57]} 3. g3 {[%clk 0:03:00]}  d5 {[%clk 0:02:57]} 4. cxd5 {[%clk 0:03:00]}  Nxd5 {[%clk 0:02:57]} 5. Bg2 {[%clk 0:03:00]}  Nc6 {[%clk 0:02:56]} 6. d4 {[%clk 0:02:59]}  Nc7 {[%clk 0:02:38]} 7. Be3 {[%clk 0:02:31]}  cxd4 {[%clk 0:02:31]} 8. Nxd4 {[%clk 0:02:31]}  Nxd4 {[%clk 0:02:28]} 9. Qxd4 {[%clk 0:02:31]}  Qxd4 {[%clk 0:02:23]} 10. Bxd4 {[%clk 0:02:32]}  Nb5 {[%clk 0:02:18]} 11. Be3 {[%clk 0:02:27]}  e5 {[%clk 0:02:18]} 12. O-O {[%clk 0:02:25]}  Be7 {[%clk 0:02:13]} 13. Rd1 {[%clk 0:02:20]}  f6 {[%clk 0:01:54]} 14. Nd2 {[%clk 0:02:19]}  Nd6 {[%clk 0:01:31]} 15. Bc5 {[%clk 0:02:13]}  Nf5 {[%clk 0:01:28]} 16. Ne4 {[%clk 0:02:06]}  Bxc5 {[%clk 0:01:24]} 17. Nxc5 {[%clk 0:02:07]}  Rb8 {[%clk 0:01:24]} 18. Rac1 {[%clk 0:01:44]}  Nd4 {[%clk 0:01:20]} 19. Kf1 {[%clk 0:01:38]}  Bg4 {[%clk 0:01:06]} 20. Rd2 {[%clk 0:01:31]}  Ke7 {[%clk 0:00:42]} 21. e3 {[%clk 0:01:19]}  Nb5 {[%clk 0:00:39]} 22. Nxb7 {[%clk 0:01:12]}  Rhc8 {[%clk 0:00:38]} 23. Nc5 {[%clk 0:01:06]}  a5 {[%clk 0:00:32]} 24. Rdc2 {[%clk 0:01:00]}  Bf5 {[%clk 0:00:27]} 25. Be4 {[%clk 0:01:00]}  Rxc5 {[%clk 0:00:25]} 26. Bxf5 {[%clk 0:01:00]}  Rxc2 {[%clk 0:00:25]} 27. Rxc2 {[%clk 0:01:01]}  g6 {[%clk 0:00:25]} 28. Bd3 {[%clk 0:01:00]}  Kd6 {[%clk 0:00:24]} 29. Ke2 {[%clk 0:00:57]}  f5 {[%clk 0:00:23]} 30. f3 {[%clk 0:00:53]}  Nc7 {[%clk 0:00:23]} 31. Bc4 {[%clk 0:00:51]}  Ke7 {[%clk 0:00:20]} 32. b3 {[%clk 0:00:49]}  Ne8 {[%clk 0:00:20]} 33. a3 {[%clk 0:00:48]}  h5 {[%clk 0:00:20]} 34. Rb2 {[%clk 0:00:47]}  Nd6 {[%clk 0:00:20]} 35. Bd5 {[%clk 0:00:43]}  e4 {[%clk 0:00:20]} 36. b4 {[%clk 0:00:42]}  Rb5 {[%clk 0:00:19]} 37. Bc6 {[%clk 0:00:39]}  exf3+ {[%clk 0:00:19]} 38. Kxf3 {[%clk 0:00:39]}  Re5 {[%clk 0:00:17]} 39. Rc2 {[%clk 0:00:32]}  axb4 {[%clk 0:00:16]} 40. axb4 {[%clk 0:00:32]}  g5 {[%clk 0:00:13]} 41. Rc5 {[%clk 0:00:27]}  Kf6 {[%clk 0:00:11]} 42. Rxe5 {[%clk 0:00:21]}  Kxe5 {[%clk 0:00:11]} 43. b5 {[%clk 0:00:22]}  Nc4 {[%clk 0:00:12]} 44. h3 {[%clk 0:00:19]}  h4 {[%clk 0:00:12]} 45. gxh4 {[%clk 0:00:18]}  gxh4 {[%clk 0:00:12]} 46. Ke2 {[%clk 0:00:18]}  Kd6 {[%clk 0:00:09]} 47. Kf3 {[%clk 0:00:15]}  Ke5 {[%clk 0:00:09]} 48. Ke2 {[%clk 0:00:15]}  Nb6 {[%clk 0:00:08]} 49. Kd3 {[%clk 0:00:14]}  Nc8 {[%clk 0:00:07]} 50. Bd7 {[%clk 0:00:12]}  Nb6 {[%clk 0:00:07]} 51. Bc6 {[%clk 0:00:11]}  Nc8 {[%clk 0:00:08]} 52. Kc4 {[%clk 0:00:11]}  Kd6 {[%clk 0:00:07]} 53. Kd4 {[%clk 0:00:11]}  Nb6 {[%clk 0:00:07]} 54. e4 {[%clk 0:00:10]}  fxe4 {[%clk 0:00:07]} 55. Kxe4 {[%clk 0:00:10]}  Ke6 {[%clk 0:00:06]} 56. Kf4 {[%clk 0:00:11]}  Kf6 {[%clk 0:00:05]} 57. Kg4 {[%clk 0:00:12]}  Kg6 {[%clk 0:00:05]} 58. Kxh4 {[%clk 0:00:12]}  Kh6 {[%clk 0:00:06]} 59. Kg4 {[%clk 0:00:13]}  Kg7 {[%clk 0:00:05]} 60. Kg5 {[%clk 0:00:13]}  Nc4 {[%clk 0:00:04]} 61. Kf5 {[%clk 0:00:13]}  Nb6 {[%clk 0:00:04]} 62. Kg4 {[%clk 0:00:13]}  Kh6 {[%clk 0:00:04]} 63. Kh4 {[%clk 0:00:13]}  Nc4 {[%clk 0:00:04]} 64. Kg4 {[%clk 0:00:13]}  Nb6 {[%clk 0:00:05]} 65. Be4 {[%clk 0:00:13]}  Nc4 {[%clk 0:00:05]} 66. Bg2 {[%clk 0:00:13]}  Nb6 {[%clk 0:00:06]} 67. Bh1 {[%clk 0:00:14]}  Na4 {[%clk 0:00:06]} 68. Ba8 {[%clk 0:00:14]}  Nb6 {[%clk 0:00:07]} 69. Bc6 {[%clk 0:00:14]}  Nc4 {[%clk 0:00:07]} 70. Kf4 {[%clk 0:00:14]}  Nb6 {[%clk 0:00:08]} 71. Ke5 {[%clk 0:00:14]}  Nc4+ {[%clk 0:00:08]} 72. Kd5 {[%clk 0:00:14]}  Nb6+ {[%clk 0:00:08]} 73. Kc5 {[%clk 0:00:13]}  Na4+ {[%clk 0:00:08]} 74. Kd6 {[%clk 0:00:12]}  Nb6 {[%clk 0:00:08]} 75. Kc7 {[%clk 0:00:12]}  Na4 {[%clk 0:00:08]} 76. Kd7 {[%clk 0:00:11]}  Nb6+ {[%clk 0:00:08]} 77. Ke6 {[%clk 0:00:12]}  Na4 {[%clk 0:00:07]} 78. Be4 {[%clk 0:00:12]}  Kg5 {[%clk 0:00:07]} 79. Kd6 {[%clk 0:00:11]}  Kh4 {[%clk 0:00:04]} 80. Bf5 {[%clk 0:00:11]}  Nb6 {[%clk 0:00:02]} 81. Be6 {[%clk 0:00:11]}  Na4 {[%clk 0:00:00]} 82. Kc6 {[%clk 0:00:11]} 1-0


[Site "https://www.chess.com"]

[Event "Titled Tuesday Blitz May 16 Early 2023"]
[White "Hajiyev, Kanan"]
[Black "Pasti, Aron"]
[WhiteFideId "13404148"]
[BlackFideId "785857"]
[WhiteElo "2103"]
[BlackElo "2173"]
[Result "0-1"]
[Round "06"]
[TimeControl "180+2"]
[Date "2023.05.16"]
[WhiteClock "0:00:18"]
[BlackClock "0:00:35"]

1. d4 {[%clk 0:03:00]}  Nf6 {[%clk 0:02:58]} 2. c4 {[%clk 0:03:01]}  e6 {[%clk 0:02:57]} 3. Nf3 {[%clk 0:03:00]}  d5 {[%clk 0:02:57]} 4. cxd5 {[%clk 0:03:00]}  exd5 {[%clk 0:02:58]} 5. Nc3 {[%clk 0:03:01]}  Be7 {[%clk 0:02:58]} 6. Qc2 {[%clk 0:03:01]}  O-O {[%clk 0:02:56]} 7. Bg5 {[%clk 0:03:02]}  c6 {[%clk 0:02:55]} 8. e3 {[%clk 0:03:02]}  Re8 {[%clk 0:02:52]} 9. Bd3 {[%clk 0:03:02]}  h6 {[%clk 0:02:53]} 10. Bf4 {[%clk 0:03:02]}  Nbd7 {[%clk 0:02:51]} 11. O-O {[%clk 0:03:02]}  Nf8 {[%clk 0:02:51]} 12. h3 {[%clk 0:03:02]}  Bd6 {[%clk 0:02:49]} 13. Ne5 {[%clk 0:03:02]}  Qe7 {[%clk 0:02:49]} 14. a3 {[%clk 0:03:02]}  N6d7 {[%clk 0:02:40]} 15. Nxd7 {[%clk 0:03:00]}  Bxd7 {[%clk 0:02:39]} 16. Bxd6 {[%clk 0:02:58]}  Qxd6 {[%clk 0:02:37]} 17. b4 {[%clk 0:02:59]}  a6 {[%clk 0:02:36]} 18. Na4 {[%clk 0:02:58]}  Rad8 {[%clk 0:02:32]} 19. Qc5 {[%clk 0:02:56]}  Qb8 {[%clk 0:02:27]} 20. Qb6 {[%clk 0:02:54]}  Bc8 {[%clk 0:02:22]} 21. Nc5 {[%clk 0:02:54]}  Nd7 {[%clk 0:02:18]} 22. Nxd7 {[%clk 0:02:54]}  Rxd7 {[%clk 0:02:14]} 23. Bxa6 {[%clk 0:02:53]}  c5 {[%clk 0:01:43]} 24. bxc5 {[%clk 0:02:44]}  Re6 {[%clk 0:01:43]} 25. Qb3 {[%clk 0:01:17]}  Rxa6 {[%clk 0:01:40]} 26. Rfb1 {[%clk 0:01:17]}  Qc7 {[%clk 0:01:33]} 27. a4 {[%clk 0:01:16]}  Qc6 {[%clk 0:01:26]} 28. a5 {[%clk 0:01:16]}  Re7 {[%clk 0:01:22]} 29. Qb4 {[%clk 0:01:15]}  Bf5 {[%clk 0:01:20]} 30. Rb2 {[%clk 0:01:15]}  Be4 {[%clk 0:01:12]} 31. Kh2 {[%clk 0:01:08]}  Qc7+ {[%clk 0:01:11]} 32. Kg1 {[%clk 0:01:07]}  Rg6 {[%clk 0:01:10]} 33. f4 {[%clk 0:01:01]}  Bf5 {[%clk 0:01:02]} 34. g4 {[%clk 0:00:40]}  Rxe3 {[%clk 0:00:44]} 35. Qxb7 {[%clk 0:00:38]}  Rg3+ {[%clk 0:00:44]} 36. Kh2 {[%clk 0:00:36]}  Rxh3+ {[%clk 0:00:44]} 37. Kxh3 {[%clk 0:00:34]}  Bxg4+ {[%clk 0:00:37]} 38. Kh4 {[%clk 0:00:33]}  Qd8+ {[%clk 0:00:36]} 39. Kg3 {[%clk 0:00:30]}  Bc8+ {[%clk 0:00:34]} 40. Kf3 {[%clk 0:00:22]}  Bxb7 {[%clk 0:00:35]} 41. Rxb7 {[%clk 0:00:18]}  Qh4 {[%clk 0:00:35]} 0-1


[Site "https://www.chess.com"]

[Event "Titled Tuesday Blitz May 16 Early 2023"]
[White "LangesNasenhaar"]
[Black "Bartel, Michal"]
[BlackFideId "1119257"]
[WhiteElo "2425"]
[BlackElo "2282"]
[Result "1-0"]
[Round "06"]
[TimeControl "180+2"]
[Date "2023.05.16"]
[WhiteClock "0:00:55"]
[BlackClock "0:00:00"]

1. d4 {[%clk 0:03:00]}  Nf6 {[%clk 0:02:58]} 2. Nc3 {[%clk 0:03:00]}  c5 {[%clk 0:02:58]} 3. d5 {[%clk 0:02:59]}  a6 {[%clk 0:01:30]} 4. a4 {[%clk 0:02:57]}  e6 {[%clk 0:01:26]} 5. e4 {[%clk 0:02:55]}  d6 {[%clk 0:01:23]} 6. Nf3 {[%clk 0:02:47]}  exd5 {[%clk 0:01:22]} 7. exd5 {[%clk 0:02:46]}  Be7 {[%clk 0:01:22]} 8. Be2 {[%clk 0:02:43]}  O-O {[%clk 0:01:23]} 9. O-O {[%clk 0:02:44]}  Re8 {[%clk 0:01:18]} 10. Nd2 {[%clk 0:02:43]}  Nbd7 {[%clk 0:01:17]} 11. Nc4 {[%clk 0:02:42]}  Nb6 {[%clk 0:01:17]} 12. Na3 {[%clk 0:02:38]}  Bd7 {[%clk 0:01:16]} 13. a5 {[%clk 0:02:36]}  Nc8 {[%clk 0:01:17]} 14. Nc4 {[%clk 0:02:35]}  Bb5 {[%clk 0:01:15]} 15. Bf4 {[%clk 0:02:33]}  Bxc4 {[%clk 0:01:14]} 16. Bxc4 {[%clk 0:02:33]}  Na7 {[%clk 0:01:12]} 17. Re1 {[%clk 0:02:28]}  Qd7 {[%clk 0:01:11]} 18. Qd3 {[%clk 0:02:21]}  Bf8 {[%clk 0:01:07]} 19. h3 {[%clk 0:02:17]}  Rxe1+ {[%clk 0:01:07]} 20. Rxe1 {[%clk 0:02:17]}  Re8 {[%clk 0:01:07]} 21. Rb1 {[%clk 0:02:11]}  Qc7 {[%clk 0:01:03]} 22. Ra1 {[%clk 0:02:06]}  Nd7 {[%clk 0:00:52]} 23. Qg3 {[%clk 0:01:58]}  Ne5 {[%clk 0:00:49]} 24. Bf1 {[%clk 0:01:58]}  Ng6 {[%clk 0:00:49]} 25. Be3 {[%clk 0:01:55]}  Be7 {[%clk 0:00:49]} 26. Ne4 {[%clk 0:01:35]}  Qd8 {[%clk 0:00:32]} 27. c4 {[%clk 0:01:31]}  Bf6 {[%clk 0:00:18]} 28. Nxf6+ {[%clk 0:01:30]}  Qxf6 {[%clk 0:00:18]} 29. Rb1 {[%clk 0:01:30]}  Qe5 {[%clk 0:00:18]} 30. Qxe5 {[%clk 0:01:23]}  Nxe5 {[%clk 0:00:18]} 31. b4 {[%clk 0:01:24]}  Nc8 {[%clk 0:00:11]} 32. bxc5 {[%clk 0:01:22]}  Nd7 {[%clk 0:00:12]} 33. c6 {[%clk 0:01:15]}  bxc6 {[%clk 0:00:13]} 34. dxc6 {[%clk 0:01:15]}  Ne5 {[%clk 0:00:13]} 35. c7 {[%clk 0:01:14]}  Kf8 {[%clk 0:00:14]} 36. c5 {[%clk 0:01:12]}  Ke7 {[%clk 0:00:13]} 37. cxd6+ {[%clk 0:01:10]}  Kxd6 {[%clk 0:00:14]} 38. Bb6 {[%clk 0:01:03]}  f6 {[%clk 0:00:14]} 39. Bxa6 {[%clk 0:01:02]}  Nd7 {[%clk 0:00:14]} 40. Rd1+ {[%clk 0:00:59]}  Kc6 {[%clk 0:00:14]} 41. Rxd7 {[%clk 0:00:54]}  Kxd7 {[%clk 0:00:00]} 42. Bb5+ {[%clk 0:00:55]} 1-0


[Site "https://www.chess.com"]

[Event "Titled Tuesday Blitz May 16 Early 2023"]
[White "Yosha_Iglesias"]
[Black "Han, Yichen"]
[BlackFideId "1054430"]
[WhiteElo "2408"]
[BlackElo "2342"]
[Result "1-0"]
[Round "06"]
[TimeControl "180+2"]
[Date "2023.05.16"]
[WhiteClock "0:01:51"]
[BlackClock "0:01:05"]

1. d4 {[%clk 0:03:00]}  Nf6 {[%clk 0:03:00]} 2. Nf3 {[%clk 0:03:01]}  e6 {[%clk 0:02:59]} 3. e3 {[%clk 0:03:01]}  b6 {[%clk 0:02:56]} 4. Bd3 {[%clk 0:03:01]}  Bb7 {[%clk 0:02:56]} 5. O-O {[%clk 0:03:01]}  Be7 {[%clk 0:02:54]} 6. c4 {[%clk 0:03:00]}  O-O {[%clk 0:02:54]} 7. Nc3 {[%clk 0:03:00]}  c5 {[%clk 0:02:53]} 8. d5 {[%clk 0:03:00]}  d6 {[%clk 0:02:50]} 9. e4 {[%clk 0:02:57]}  Nbd7 {[%clk 0:02:49]} 10. dxe6 {[%clk 0:02:55]}  fxe6 {[%clk 0:02:49]} 11. Ng5 {[%clk 0:02:56]}  Qc8 {[%clk 0:02:35]} 12. Nxe6 {[%clk 0:02:55]}  Re8 {[%clk 0:02:33]} 13. Nd5 {[%clk 0:02:47]}  Nxd5 {[%clk 0:02:07]} 14. exd5 {[%clk 0:02:43]}  Ne5 {[%clk 0:02:08]} 15. f4 {[%clk 0:02:37]}  Nxd3 {[%clk 0:02:02]} 16. Qxd3 {[%clk 0:02:37]}  Bf6 {[%clk 0:02:00]} 17. Rb1 {[%clk 0:02:23]}  Rxe6 {[%clk 0:01:37]} 18. dxe6 {[%clk 0:02:23]}  Qxe6 {[%clk 0:01:38]} 19. Bd2 {[%clk 0:02:06]}  Be4 {[%clk 0:01:30]} 20. Qe2 {[%clk 0:02:03]}  Bd4+ {[%clk 0:01:14]} 21. Kh1 {[%clk 0:01:57]}  Qg6 {[%clk 0:01:13]} 22. Rbe1 {[%clk 0:01:52]}  Bd3 {[%clk 0:01:12]} 23. Qf3 {[%clk 0:01:53]}  Bxf1 {[%clk 0:01:09]} 24. Qxa8+ {[%clk 0:01:51]}  Kf7 {[%clk 0:01:08]} 25. Qe8+ {[%clk 0:01:50]}  Kf6 {[%clk 0:01:05]} 26. Qe6# {[%clk 0:01:51]} 1-0


[Site "https://www.chess.com"]

[Event "Titled Tuesday Blitz May 16 Early 2023"]
[White "Petrova, Irina"]
[Black "Altman, Joshua"]
[WhiteFideId "14124122"]
[BlackFideId "426210"]
[WhiteElo "2084"]
[BlackElo "2028"]
[Result "1/2-1/2"]
[Round "06"]
[TimeControl "180+2"]
[Date "2023.05.16"]
[WhiteClock "0:00:13"]
[BlackClock "0:00:06"]

1. e4 {[%clk 0:03:00]}  e6 {[%clk 0:02:59]} 2. d4 {[%clk 0:02:59]}  d5 {[%clk 0:02:59]} 3. Nc3 {[%clk 0:03:00]}  dxe4 {[%clk 0:02:58]} 4. Nxe4 {[%clk 0:03:01]}  Nd7 {[%clk 0:02:58]} 5. Nf3 {[%clk 0:03:00]}  Ngf6 {[%clk 0:02:58]} 6. Bg5 {[%clk 0:03:00]}  Be7 {[%clk 0:02:57]} 7. Bxf6 {[%clk 0:03:00]}  Nxf6 {[%clk 0:02:57]} 8. Nxf6+ {[%clk 0:02:58]}  Bxf6 {[%clk 0:02:57]} 9. Bd3 {[%clk 0:02:57]}  O-O {[%clk 0:02:57]} 10. c3 {[%clk 0:02:57]}  Bd7 {[%clk 0:02:56]} 11. Qc2 {[%clk 0:02:56]}  h6 {[%clk 0:02:54]} 12. h4 {[%clk 0:02:56]}  Bc6 {[%clk 0:02:53]} 13. Ng5 {[%clk 0:02:48]}  Bxg5 {[%clk 0:02:49]} 14. hxg5 {[%clk 0:02:49]}  Qxg5 {[%clk 0:02:48]} 15. Be4 {[%clk 0:02:38]}  Bd5 {[%clk 0:02:34]} 16. Bxd5 {[%clk 0:02:30]}  Qxd5 {[%clk 0:02:17]} 17. O-O-O {[%clk 0:02:27]}  Qxa2 {[%clk 0:02:14]} 18. g4 {[%clk 0:02:25]}  Qd5 {[%clk 0:02:03]} 19. f4 {[%clk 0:02:24]}  f5 {[%clk 0:01:35]} 20. g5 {[%clk 0:02:24]}  hxg5 {[%clk 0:01:14]} 21. fxg5 {[%clk 0:02:25]}  Kf7 {[%clk 0:01:11]} 22. Rdg1 {[%clk 0:02:12]}  Rh8 {[%clk 0:01:09]} 23. g6+ {[%clk 0:02:12]}  Ke7 {[%clk 0:01:07]} 24. Rh7 {[%clk 0:02:03]}  Rag8 {[%clk 0:00:53]} 25. Qh2 {[%clk 0:01:57]}  Qd8 {[%clk 0:00:46]} 26. Rh1 {[%clk 0:01:48]}  Rxh7 {[%clk 0:00:42]} 27. gxh7 {[%clk 0:01:49]}  Rh8 {[%clk 0:00:42]} 28. Qe5 {[%clk 0:01:44]}  Kf7 {[%clk 0:00:35]} 29. Qh2 {[%clk 0:01:24]}  Qd6 {[%clk 0:00:28]} 30. Qh5+ {[%clk 0:01:22]}  g6 {[%clk 0:00:29]} 31. Qh6 {[%clk 0:01:15]}  Qf8 {[%clk 0:00:27]} 32. Qf4 {[%clk 0:01:13]}  Qd6 {[%clk 0:00:26]} 33. Qh6 {[%clk 0:01:13]}  Qe7 {[%clk 0:00:23]} 34. Rg1 {[%clk 0:01:04]}  Qf6 {[%clk 0:00:22]} 35. Qf4 {[%clk 0:00:54]}  Rxh7 {[%clk 0:00:21]} 36. Qxc7+ {[%clk 0:00:54]}  Qe7 {[%clk 0:00:22]} 37. Qg3 {[%clk 0:00:49]}  Rg7 {[%clk 0:00:20]} 38. Kb1 {[%clk 0:00:48]}  Qd7 {[%clk 0:00:20]} 39. Re1 {[%clk 0:00:42]}  g5 {[%clk 0:00:19]} 40. Qe5 {[%clk 0:00:34]}  g4 {[%clk 0:00:17]} 41. Re3 {[%clk 0:00:32]}  Qd5 {[%clk 0:00:13]} 42. Qc7+ {[%clk 0:00:32]}  Kg8 {[%clk 0:00:12]} 43. Qb8+ {[%clk 0:00:30]}  Kh7 {[%clk 0:00:11]} 44. Qh2+ {[%clk 0:00:29]}  Kg6 {[%clk 0:00:11]} 45. Re5 {[%clk 0:00:27]}  Qd6 {[%clk 0:00:09]} 46. Qh8 {[%clk 0:00:19]}  Kf7 {[%clk 0:00:04]} 47. Qh5+ {[%clk 0:00:18]}  Ke7 {[%clk 0:00:03]} 48. Qxf5 {[%clk 0:00:17]}  Rf7 {[%clk 0:00:02]} 49. Qg5+ {[%clk 0:00:15]}  Kd7 {[%clk 0:00:02]} 50. Ka2 {[%clk 0:00:10]}  Qa6+ {[%clk 0:00:02]} 51. Ra5 {[%clk 0:00:10]}  Qd6 {[%clk 0:00:02]} 52. Rxa7 {[%clk 0:00:08]}  Qd5+ {[%clk 0:00:01]} 53. Qxd5+ {[%clk 0:00:08]}  exd5 {[%clk 0:00:02]} 54. Rxb7+ {[%clk 0:00:09]}  Ke6 {[%clk 0:00:02]} 55. Rb8 {[%clk 0:00:08]}  Rg7 {[%clk 0:00:02]} 56. Re8+ {[%clk 0:00:09]}  Kd7 {[%clk 0:00:02]} 57. Re1 {[%clk 0:00:09]}  g3 {[%clk 0:00:02]} 58. Rg1 {[%clk 0:00:09]}  g2 {[%clk 0:00:03]} 59. b4 {[%clk 0:00:10]}  Ke6 {[%clk 0:00:03]} 60. Kb3 {[%clk 0:00:10]}  Kf5 {[%clk 0:00:04]} 61. b5 {[%clk 0:00:10]}  Kf4 {[%clk 0:00:04]} 62. Kb4 {[%clk 0:00:11]}  Kf3 {[%clk 0:00:04]} 63. Kc5 {[%clk 0:00:11]}  Rc7+ {[%clk 0:00:04]} 64. Kxd5 {[%clk 0:00:11]}  Rxc3 {[%clk 0:00:05]} 65. b6 {[%clk 0:00:11]}  Rb3 {[%clk 0:00:05]} 66. Kc6 {[%clk 0:00:11]}  Kf2 {[%clk 0:00:05]} 67. Rxg2+ {[%clk 0:00:11]}  Kxg2 {[%clk 0:00:05]} 68. b7 {[%clk 0:00:12]}  Kf3 {[%clk 0:00:06]} 69. Kc7 {[%clk 0:00:12]}  Ke4 {[%clk 0:00:06]} 70. b8=Q {[%clk 0:00:12]}  Rxb8 {[%clk 0:00:06]} 71. Kxb8 {[%clk 0:00:13]}  Kxd4 {[%clk 0:00:06]} 1/2-1/2


[Site "https://www.chess.com"]

[Event "Titled Tuesday Blitz May 16 Early 2023"]
[White "Chabris, Christopher"]
[Black "Ginzburg, Yakov"]
[WhiteFideId "2005263"]
[BlackFideId "4157176"]
[WhiteElo "2374"]
[BlackElo "2305"]
[Result "1-0"]
[Round "06"]
[TimeControl "180+2"]
[Date "2023.05.16"]
[WhiteClock "0:00:54"]
[BlackClock "0:00:04"]

1. e4 {[%clk 0:02:59]}  c5 {[%clk 0:02:58]} 2. Nf3 {[%clk 0:02:59]}  e6 {[%clk 0:02:58]} 3. d4 {[%clk 0:02:58]}  cxd4 {[%clk 0:02:58]} 4. Nxd4 {[%clk 0:02:59]}  Nf6 {[%clk 0:02:57]} 5. Nc3 {[%clk 0:02:58]}  Nc6 {[%clk 0:02:57]} 6. Nxc6 {[%clk 0:02:56]}  bxc6 {[%clk 0:02:57]} 7. Bd3 {[%clk 0:02:56]}  d5 {[%clk 0:02:57]} 8. e5 {[%clk 0:02:56]}  Nd7 {[%clk 0:02:57]} 9. Bf4 {[%clk 0:02:51]}  Rb8 {[%clk 0:02:46]} 10. Rb1 {[%clk 0:02:43]}  Rb4 {[%clk 0:02:41]} 11. Qf3 {[%clk 0:02:32]}  g5 {[%clk 0:02:19]} 12. Bg3 {[%clk 0:02:25]}  h5 {[%clk 0:02:19]} 13. h4 {[%clk 0:02:10]}  g4 {[%clk 0:02:14]} 14. Qe2 {[%clk 0:02:06]}  Be7 {[%clk 0:02:07]} 15. a3 {[%clk 0:02:04]}  Rd4 {[%clk 0:01:59]} 16. Qe3 {[%clk 0:01:49]}  c5 {[%clk 0:01:48]} 17. Ne2 {[%clk 0:01:46]}  Ra4 {[%clk 0:01:43]} 18. c4 {[%clk 0:01:36]}  dxc4 {[%clk 0:01:27]} 19. Be4 {[%clk 0:01:35]}  c3 {[%clk 0:01:00]} 20. Nxc3 {[%clk 0:01:32]}  Rd4 {[%clk 0:00:53]} 21. Ne2 {[%clk 0:01:13]}  Ba6 {[%clk 0:00:17]} 22. Nxd4 {[%clk 0:01:07]}  cxd4 {[%clk 0:00:18]} 23. Qxd4 {[%clk 0:01:07]}  Bc5 {[%clk 0:00:15]} 24. Qa4 {[%clk 0:01:06]}  Qb6 {[%clk 0:00:07]} 25. Rd1 {[%clk 0:01:03]}  Qxb2 {[%clk 0:00:02]} 26. Qxd7+ {[%clk 0:01:02]}  Kf8 {[%clk 0:00:03]} 27. Qd8+ {[%clk 0:00:58]}  Kg7 {[%clk 0:00:03]} 28. Qf6+ {[%clk 0:00:58]}  Kg8 {[%clk 0:00:03]} 29. Rd8+ {[%clk 0:00:58]}  Bf8 {[%clk 0:00:04]} 30. Qg5# {[%clk 0:00:54]} 1-0


[Site "https://www.chess.com"]

[Event "Titled Tuesday Blitz May 16 Early 2023"]
[White "Estrada Nieto, Julian"]
[Black "Gutkin, Ilya"]
[WhiteFideId "5101018"]
[BlackFideId "16203470"]
[WhiteElo "2161"]
[BlackElo "2265"]
[Result "1/2-1/2"]
[Round "06"]
[TimeControl "180+2"]
[Date "2023.05.16"]
[WhiteClock "0:00:03"]
[BlackClock "0:00:04"]

1. e4 {[%clk 0:03:00]}  e6 {[%clk 0:03:00]} 2. d4 {[%clk 0:03:00]}  d5 {[%clk 0:03:00]} 3. Nd2 {[%clk 0:03:00]}  c5 {[%clk 0:03:00]} 4. exd5 {[%clk 0:03:00]}  Qxd5 {[%clk 0:03:00]} 5. Ngf3 {[%clk 0:03:01]}  cxd4 {[%clk 0:03:01]} 6. Bc4 {[%clk 0:03:01]}  Qd7 {[%clk 0:03:01]} 7. O-O {[%clk 0:03:02]}  Nc6 {[%clk 0:03:01]} 8. Nb3 {[%clk 0:03:02]}  Nf6 {[%clk 0:03:02]} 9. Nbxd4 {[%clk 0:03:03]}  Nxd4 {[%clk 0:03:00]} 10. Nxd4 {[%clk 0:03:03]}  a6 {[%clk 0:03:00]} 11. Bb3 {[%clk 0:03:02]}  Bc5 {[%clk 0:02:59]} 12. Be3 {[%clk 0:02:52]}  O-O {[%clk 0:02:40]} 13. Nxe6 {[%clk 0:02:26]}  Bxe3 {[%clk 0:02:39]} 14. Nxf8 {[%clk 0:02:18]}  Qxd1 {[%clk 0:02:38]} 15. Raxd1 {[%clk 0:02:10]}  Bb6 {[%clk 0:02:37]} 16. Rfe1 {[%clk 0:01:51]}  Kxf8 {[%clk 0:02:33]} 17. Rd6 {[%clk 0:01:40]}  Bc7 {[%clk 0:02:28]} 18. Rd4 {[%clk 0:01:38]}  Bf5 {[%clk 0:02:24]} 19. Rc4 {[%clk 0:01:32]}  Bd6 {[%clk 0:02:18]} 20. Rd4 {[%clk 0:01:28]}  Bc5 {[%clk 0:02:17]} 21. Rf4 {[%clk 0:01:27]}  Bg6 {[%clk 0:02:11]} 22. g4 {[%clk 0:01:25]}  Re8 {[%clk 0:02:02]} 23. Rxe8+ {[%clk 0:01:22]}  Kxe8 {[%clk 0:02:02]} 24. g5 {[%clk 0:01:21]}  Nd7 {[%clk 0:01:52]} 25. Bd5 {[%clk 0:01:18]}  b5 {[%clk 0:01:50]} 26. c3 {[%clk 0:01:17]}  Ke7 {[%clk 0:01:47]} 27. Be4 {[%clk 0:01:11]}  Ne5 {[%clk 0:01:44]} 28. Kg2 {[%clk 0:01:05]}  Nd3 {[%clk 0:01:27]} 29. Bxd3 {[%clk 0:00:57]}  Bxd3 {[%clk 0:01:28]} 30. a4 {[%clk 0:00:52]}  Ke6 {[%clk 0:01:18]} 31. axb5 {[%clk 0:00:51]}  axb5 {[%clk 0:01:19]} 32. Kf3 {[%clk 0:00:45]}  Bc4 {[%clk 0:01:15]} 33. Kg4 {[%clk 0:00:38]}  Bd6 {[%clk 0:01:08]} 34. Re4+ {[%clk 0:00:37]}  Kd5 {[%clk 0:01:09]} 35. Re8 {[%clk 0:00:35]}  Bd3 {[%clk 0:00:59]} 36. f4 {[%clk 0:00:31]}  g6 {[%clk 0:00:41]} 37. Rh8 {[%clk 0:00:27]}  Kc4 {[%clk 0:00:35]} 38. Rxh7 {[%clk 0:00:27]}  Bf5+ {[%clk 0:00:34]} 39. Kf3 {[%clk 0:00:26]}  Be6 {[%clk 0:00:34]} 40. h4 {[%clk 0:00:20]}  Kb3 {[%clk 0:00:34]} 41. h5 {[%clk 0:00:20]}  gxh5 {[%clk 0:00:34]} 42. Rxh5 {[%clk 0:00:15]}  Kxb2 {[%clk 0:00:35]} 43. g6 {[%clk 0:00:15]}  fxg6 {[%clk 0:00:28]} 44. Rxb5+ {[%clk 0:00:14]}  Kxc3 {[%clk 0:00:28]} 45. Rb6 {[%clk 0:00:12]}  Bd5+ {[%clk 0:00:26]} 46. Kg4 {[%clk 0:00:12]}  Bc5 {[%clk 0:00:20]} 47. Rxg6 {[%clk 0:00:12]}  Kd4 {[%clk 0:00:21]} 48. f5 {[%clk 0:00:12]}  Ke5 {[%clk 0:00:20]} 49. Rg7 {[%clk 0:00:10]}  Be4 {[%clk 0:00:14]} 50. Rf7 {[%clk 0:00:08]}  Be3 {[%clk 0:00:12]} 51. Rf8 {[%clk 0:00:07]}  Bc6 {[%clk 0:00:09]} 52. f6 {[%clk 0:00:06]}  Bd7+ {[%clk 0:00:08]} 53. Kh5 {[%clk 0:00:06]}  Bc5 {[%clk 0:00:07]} 54. Rh8 {[%clk 0:00:05]}  Kxf6 {[%clk 0:00:07]} 55. Rh6+ {[%clk 0:00:05]}  Kf5 {[%clk 0:00:06]} 56. Rh7 {[%clk 0:00:05]}  Be8+ {[%clk 0:00:06]} 57. Kh4 {[%clk 0:00:05]}  Bd6 {[%clk 0:00:05]} 58. Kh3 {[%clk 0:00:05]}  Bc6 {[%clk 0:00:04]} 59. Rh6 {[%clk 0:00:05]}  Ke5 {[%clk 0:00:04]} 60. Rh5+ {[%clk 0:00:05]}  Kf4 {[%clk 0:00:04]} 61. Rh6 {[%clk 0:00:06]}  Bd7+ {[%clk 0:00:04]} 62. Kg2 {[%clk 0:00:05]}  Be5 {[%clk 0:00:04]} 63. Rh4+ {[%clk 0:00:04]}  Ke3 {[%clk 0:00:04]} 64. Rh7 {[%clk 0:00:05]}  Bc6+ {[%clk 0:00:03]} 65. Kh3 {[%clk 0:00:05]}  Be4 {[%clk 0:00:03]} 66. Re7 {[%clk 0:00:03]}  Bf5+ {[%clk 0:00:02]} 67. Kh4 {[%clk 0:00:02]}  Kf4 {[%clk 0:00:03]} 68. Kh5 {[%clk 0:00:03]}  Bf6 {[%clk 0:00:03]} 69. Rf7 {[%clk 0:00:03]}  Ke5 {[%clk 0:00:03]} 70. Rxf6 {[%clk 0:00:03]}  Kxf6 {[%clk 0:00:04]} 1/2-1/2


[Site "https://www.chess.com"]